bitfinex-derivatives/quotes_BTCF0:USTF0_20250216
["timestamp","ask_amount","ask_price","bid_price","bid_amount"]
[1739706045766,0.45944,97316.0,97315.0,0.007]
[1739706045964,0.46044,97316.0,97315.0,0.014]
[1739706052274,0.46044,97316.0,97310.0,0.0001541]
[1739706052477,0.46044,97316.0,97303.0,4e-05]
[1739706052478,0.3618,97316.0,97303.0,4e-05]
[1739706053773,0.09864,97315.0,97303.0,4e-05]
[1739706054077,0.09864,97315.0,97303.0,0.00704]
[1739706054473,0.09864,97315.0,97310.0,0.006]
[1739706054778,0.09864,97315.0,97310.0,0.00560017]
[1739706055181,0.09864,97315.0,97303.0,4e-05]
[1739706055478,0.09964,97315.0,97303.0,0.01304]
[1739706056069,0.09964,97315.0,97303.0,0.00704]
[1739706056773,0.09964,97315.0,97303.0,4e-05]
[1739706056973,0.10064,97315.0,97310.0,0.007]
[1739706057373,0.09964,97315.0,97303.0,4e-05]
[1739706057578,0.09964,97315.0,97303.0,0.00704]
[1739706057775,0.10064,97315.0,97303.0,0.01204]
[1739706057982,0.10064,97315.0,97303.0,0.00504]
[1739706057983,0.09964,97315.0,97303.0,0.00504]
[1739706058181,0.10064,97315.0,97310.0,0.007]
[1739706059277,0.10064,97315.0,97310.0,0.012]
[1739706060282,0.10064,97315.0,97310.0,0.005]
[1739706060980,0.09964,97315.0,97310.0,0.005]
[1739706061184,0.10064,97315.0,97310.0,0.012]
[1739706069388,0.10064,97315.0,97310.0,0.01160017]
[1739706075199,0.15417726,97313.0,97310.0,0.01160017]
[1739706075397,0.0316,97312.0,97310.0,0.01160017]
[1739706075691,0.09864,97311.0,97310.0,0.01160017]
[1739706075998,0.13024,97311.0,97310.0,0.01160017]
[1739706076392,0.16074,97311.0,97300.0,0.0001541]
[1739706076699,0.0621,97311.0,97310.0,0.005]
[1739706076883,0.0621,97311.0,97310.0,0.01]
[1739706077400,0.0631,97311.0,97310.0,0.011]
[1739706077691,0.0631,97311.0,97310.0,0.006]
[1739706077898,0.0641,97311.0,97310.0,0.011]
[1739706079896,0.11407774,97311.0,97310.0,0.011]
[1739706080503,0.47487774,97311.0,97310.0,0.011]
[1739706080700,0.47487774,97311.0,97300.0,0.0001541]
[1739706081002,0.3608,97303.0,97300.0,0.0001541]
[1739706081197,0.0332,97302.0,97300.0,0.0001541]
[1739706081904,0.04330496,97302.0,97300.0,0.0001541]
[1739706083700,0.04430496,97302.0,97300.0,0.0001541]
[1739706084205,0.04530496,97302.0,97298.0,0.06475427]
[1739706086007,0.07800496,97302.0,97298.0,0.06475427]
[1739706091310,0.3608,97299.0,97298.0,0.06475427]
[1739706091523,0.3608,97299.0,97298.0,0.03175427]
[1739706092922,0.3618,97299.0,97297.0,0.0329]
[1739706094328,0.3618,97299.0,97292.0,0.0304]
[1739706094516,0.09864,97298.0,97292.0,0.0304]
[1739706099325,0.3608,97293.0,97292.0,0.03000017]
[1739706100522,0.3618,97293.0,97292.0,0.03000017]
[1739706101219,0.3628,97293.0,97292.0,0.03000017]
[1739706102027,0.3628,97293.0,97290.0,0.0001132]
[1739706102323,0.0632,97292.0,97290.0,0.0001132]
[1739706104018,0.0642,97292.0,97290.0,0.0001132]
[1739706104214,0.0652,97292.0,97290.0,0.0001132]
[1739706104630,0.3608,97291.0,97290.0,0.0001132]
[1739706105930,0.3618,97291.0,97290.0,0.0001132]
[1739706107121,0.3628,97291.0,97290.0,0.0001132]
[1739706114335,0.3628,97291.0,97288.0,0.03241337]
[1739706129344,0.3628,97291.0,97288.0,0.03201354]
[1739706134245,0.3628,97291.0,97282.0,0.0328]
[1739706134440,0.3628,97291.0,97283.0,0.0308]
[1739706134845,0.3628,97291.0,97286.0,0.32530983]
[1739706135947,0.3608,97287.0,97286.0,0.32530983]
[1739706137343,0.3618,97287.0,97286.0,0.32530983]
[1739706137743,0.3628,97287.0,97286.0,0.32530983]
[1739706138451,0.3628,97287.0,97286.0,0.14037496]
[1739706140055,0.3628,97287.0,97286.0,0.00178879]
[1739706142747,0.3628,97287.0,97284.0,0.18495326]
[1739706142951,0.0328,97286.0,97284.0,0.18495326]
[1739706143351,0.0313,97285.0,97284.0,0.18495326]
[1739706144255,0.0313,97285.0,97284.0,0.18455343]
[1739706144455,0.0323,97285.0,97284.0,0.18455343]
[1739706145358,0.0333,97285.0,97284.0,0.18455343]
[1739706146649,0.0333,97285.0,97283.0,0.0308]
[1739706147749,0.04367207,97285.0,97283.0,0.0308]
[1739706149751,0.3608,97284.0,97283.0,0.0308]
[1739706149953,0.45944,97284.0,97283.0,0.0308]
[1739706151158,0.46044,97284.0,97283.0,0.0308]
[1739706152150,0.46144,97284.0,97278.0,0.24640426]
[1739706152353,0.3628,97284.0,97278.0,0.24640426]
[1739706153266,0.3618,97284.0,97278.0,0.24640426]
[1739706153558,0.3628,97284.0,97278.0,0.24640426]
[1739706155863,0.3628,97284.0,97277.0,0.24640426]
[1739706157155,0.3608,97278.0,97277.0,0.24640426]
[1739706158263,0.3618,97278.0,97277.0,0.24640426]
[1739706158466,0.001,97278.0,97277.0,0.24640426]
[1739706158766,0.3628,97278.0,97277.0,0.24640426]
[1739706159265,0.3628,97278.0,97277.0,0.24600443]
[1739706159565,0.002,97278.0,97277.0,0.24600443]
[1739706159763,0.3628,97278.0,97277.0,0.24600443]
[1739706160864,0.3628,97278.0,97273.0,0.096]
[1739706161068,0.12874,97277.0,97273.0,0.096]
[1739706161367,0.0301,97277.0,97273.0,0.096]
[1739706161959,0.3608,97274.0,97273.0,0.096]
[1739706162159,0.45944,97274.0,97273.0,0.096]
[1739706163358,0.09864,97274.0,97273.0,0.096]
[1739706163669,0.46044,97274.0,97273.0,0.096]
[1739706164458,0.09964,97274.0,97273.0,0.096]
[1739706164668,0.46144,97274.0,97273.0,0.096]
[1739706165760,0.10064,97274.0,97273.0,0.096]
[1739706165959,0.46144,97274.0,97273.0,0.096]
[1739706172069,0.46044,97274.0,97273.0,0.096]
[1739706173757,0.45944,97274.0,97273.0,0.096]
[1739706174368,0.45944,97274.0,97273.0,0.09560017]
[1739706180470,0.45944,97274.0,97273.0,0.0645]
[1739706180773,0.3608,97274.0,97273.0,0.0645]
[1739706189478,0.3608,97274.0,97273.0,0.06410017]
[1739706197183,0.15415196,97288.0,97273.0,0.06410017]
[1739706197386,0.15415196,97288.0,97274.0,0.0333]
[1739706197891,0.15415196,97288.0,97284.0,0.3608]
[1739706198083,0.15415196,97288.0,97285.0,0.0983]
[1739706198691,0.15715196,97288.0,97285.0,0.0983]
[1739706199295,0.16115196,97288.0,97285.0,0.0983]
[1739706200499,0.007,97288.0,97285.0,0.0983]
[1739706204189,0.007,97288.0,97285.0,0.09790017]
[1739706205394,0.007,97288.0,97285.0,0.0655]
[1739706206492,0.0314,97287.0,97285.0,0.0322]
[1739706207699,0.0344,97287.0,97285.0,0.0322]
[1739706208698,0.0364,97287.0,97285.0,0.0322]
[1739706213199,0.005,97287.0,97285.0,0.0322]
[1739706213400,0.005,97287.0,97286.0,0.0323]
[1739706215397,0.005,97287.0,97286.0,0.0647]
[1739706217304,0.005,97287.0,97286.0,0.2858]
[1739706219202,0.005,97287.0,97286.0,0.28540017]
[1739706228311,0.004,97287.0,97286.0,0.28540017]
[1739706234411,0.004,97287.0,97286.0,0.28500034]
[1739706234711,0.004,97287.0,97286.0,0.59318215]
[1739706237915,0.004,97287.0,97286.0,0.56168181]
[1739706238617,0.004,97287.0,97286.0,0.2535]
[1739706242727,0.004,97287.0,97286.0,0.56168181]
[1739706246514,0.004,97287.0,97286.0,0.62549193]
[1739706246718,0.004,97287.0,97286.0,0.98629193]
[1739706249431,0.004,97287.0,97286.0,0.9858921]
[1739706250135,0.004,97287.0,97286.0,0.95389193]
[1739706256130,0.005,97287.0,97286.0,0.95389193]
[1739706259536,0.005,97287.0,97286.0,0.59309193]
[1739706259737,0.005,97287.0,97286.0,0.95389193]
[1739706260440,0.005,97287.0,97286.0,0.59309193]
[1739706260737,0.005,97287.0,97286.0,0.95389193]
[1739706263542,0.005,97287.0,97286.0,0.59309193]
[1739706263735,0.005,97287.0,97286.0,0.95389193]
[1739706264334,0.005,97287.0,97286.0,0.9534921]
[1739706265334,0.005,97287.0,97286.0,0.5926921]
[1739706265535,0.005,97287.0,97286.0,0.9534921]
[1739706266844,0.005,97287.0,97286.0,0.5926921]
[1739706267039,0.005,97287.0,97286.0,0.9534921]
[1739706267543,0.005,97287.0,97286.0,0.5926921]
[1739706267739,0.005,97287.0,97286.0,0.9534921]
[1739706268734,0.005,97287.0,97286.0,0.5926921]
[1739706268940,0.005,97287.0,97286.0,0.9534921]
[1739706269747,0.005,97287.0,97286.0,0.5926921]
[1739706269948,0.005,97287.0,97286.0,0.9534921]
[1739706270543,0.005,97287.0,97286.0,0.5926921]
[1739706270745,0.005,97287.0,97286.0,0.9534921]
[1739706272543,0.005,97287.0,97286.0,0.5926921]
[1739706272748,0.005,97287.0,97286.0,0.9534921]
[1739706273646,0.005,97287.0,97286.0,0.5926921]
[1739706273841,0.005,97287.0,97286.0,0.9534921]
[1739706274644,0.005,97287.0,97286.0,0.5926921]
[1739706274849,0.005,97287.0,97286.0,0.9534921]
[1739706279848,0.005,97287.0,97286.0,0.95309227]
[1739706280546,0.005,97287.0,97286.0,0.59229227]
[1739706280850,0.005,97287.0,97286.0,0.95309227]
[1739706281848,0.005,97287.0,97286.0,0.59229227]
[1739706282053,0.005,97287.0,97286.0,0.95309227]
[1739706283747,0.005,97287.0,97286.0,0.59229227]
[1739706283946,0.005,97287.0,97286.0,0.95309227]
[1739706284748,0.005,97287.0,97286.0,0.59229227]
[1739706284953,0.005,97287.0,97286.0,0.95309227]
[1739706290861,0.005,97287.0,97286.0,0.96915842]
[1739706291350,0.005,97287.0,97286.0,0.95309227]
[1739706291554,0.005,97287.0,97286.0,0.96915842]
[1739706291859,0.005,97287.0,97286.0,0.95309227]
[1739706293859,0.005,97287.0,97286.0,0.96915842]
[1739706294363,0.005,97287.0,97286.0,0.96875859]
[1739706295762,0.004,97287.0,97286.0,0.95269244]
[1739706296363,0.002,97287.0,97286.0,0.95269244]
[1739706296559,0.004,97287.0,97286.0,0.95269244]
[1739706297867,0.004,97287.0,97286.0,0.96875828]
[1739706298864,0.004,97287.0,97286.0,0.95269244]
[1739706299471,0.002,97287.0,97286.0,0.95269244]
[1739706299670,0.005,97287.0,97286.0,0.95269244]
[1739706309285,0.005,97287.0,97286.0,0.95229261]
[1739706317979,0.005,97287.0,97286.0,0.98519261]
[1739706319094,0.005,97287.0,97286.0,1.00125833]
[1739706319891,0.005,97287.0,97286.0,0.98519261]
[1739706322995,0.005,97287.0,97286.0,1.00125829]
[1739706323694,0.005,97287.0,97286.0,0.98519261]
[1739706325897,0.005,97287.0,97286.0,1.00125829]
[1739706327402,0.005,97287.0,97286.0,1.37085708]
[1739706327900,0.005,97287.0,97286.0,1.37085709]
[1739706332002,0.005,97287.0,97286.0,1.37085703]
[1739706334496,0.005,97287.0,97286.0,1.3547914]
[1739706334706,0.005,97287.0,97286.0,1.37085703]
[1739706343206,0.005,97287.0,97286.0,1.3218914]
[1739706350308,0.005,97287.0,97286.0,0.95229261]
[1739706359819,0.005,97287.0,97286.0,0.59149261]
[1739706360020,0.005,97287.0,97286.0,0.95229261]
[1739706360821,0.005,97287.0,97286.0,0.59149261]
[1739706361019,0.005,97287.0,97286.0,0.95229261]
[1739706374930,0.005,97287.0,97286.0,0.59149261]
[1739706375326,0.005,97287.0,97286.0,0.95229261]
[1739706386042,1e-08,97290.0,97286.0,0.95229261]
[1739706386243,1e-08,97290.0,97287.0,0.0309]
[1739706387334,0.0323,97308.0,97287.0,0.0309]
[1739706387532,0.0323,97308.0,97301.0,0.3608]
[1739706387733,0.0319,97307.0,97301.0,0.3608]
[1739706388340,0.0319,97307.0,97302.0,0.0625]
[1739706388936,0.0389,97307.0,97302.0,0.0625]
[1739706389946,0.0459,97307.0,97302.0,0.0625]
[1739706390242,0.0459,97307.0,97305.0,0.30755802]
[1739706390647,0.0389,97307.0,97305.0,0.30755802]
[1739706390842,0.0459,97307.0,97305.0,0.30755802]
[1739706391443,0.0389,97307.0,97305.0,0.30755802]
[1739706391643,0.0459,97307.0,97305.0,0.30755802]
[1739706392449,0.0459,97307.0,97305.0,0.5270587]
[1739706393048,0.0459,97307.0,97305.0,0.53742219]
[1739706393252,0.0389,97307.0,97305.0,0.22986417]
[1739706393553,0.0459,97307.0,97305.0,0.22986417]
[1739706397251,0.0459,97307.0,97306.0,0.24585873]
[1739706398957,0.014,97307.0,97306.0,0.27675873]
[1739706399154,0.03235418,97314.0,97306.0,0.27675873]
[1739706399155,0.03,97313.0,97306.0,0.27675873]
[1739706400251,0.037,97313.0,97306.0,0.27675873]
[1739706401047,0.044,97313.0,97306.0,0.27775873]
[1739706402542,0.0762,97313.0,97307.0,0.68039033]
[1739706402748,0.0762,97313.0,97307.0,0.89989101]
[1739706403157,0.0321,97312.0,97307.0,0.89989101]
[1739706403851,0.0321,97312.0,97307.0,0.90089101]
[1739706404259,0.0321,97312.0,97307.0,0.90189101]
[1739706405057,0.0391,97312.0,97307.0,0.90189101]
[1739706405446,0.0391,97312.0,97307.0,0.90089101]
[1739706405648,0.0461,97312.0,97307.0,0.90089101]
[1739706406750,0.0461,97312.0,97307.0,0.22050068]
[1739706410258,0.0461,97312.0,97311.0,0.18435344]
[1739706411770,0.0391,97312.0,97311.0,0.18435344]
[1739706411954,0.0461,97312.0,97311.0,0.18535344]
[1739706413749,0.0461,97312.0,97311.0,0.001]
[1739706423862,0.014,97312.0,97311.0,0.001]
[1739706424167,0.014,97312.0,97311.0,0.0334]
[1739706428172,0.014,97312.0,97311.0,0.0665]
[1739706428766,0.014,97312.0,97311.0,0.08256396]
[1739706438073,0.014,97312.0,97311.0,0.0825633]
[1739706439369,0.014,97312.0,97311.0,0.0665]
[1739706440280,0.014,97312.0,97311.0,0.04946325]
[1739706442481,0.014,97312.0,97311.0,0.43349718]
[1739706446981,0.014,97312.0,97311.0,0.07516424]
[1739706447176,0.007,97312.0,97311.0,0.07516424]
[1739706447376,0.014,97312.0,97311.0,0.07516424]
[1739706448777,0.007,97312.0,97311.0,0.0751641]
[1739706448975,0.014,97312.0,97311.0,0.04946311]
[1739706449376,0.007,97312.0,97311.0,0.04946311]
[1739706449580,0.005,97312.0,97311.0,0.04846311]
[1739706449785,0.011,97312.0,97311.0,0.04946311]
[1739706454280,0.011,97312.0,97311.0,0.43677033]
[1739706456293,0.011,97312.0,97311.0,0.42070722]
[1739706456800,0.011,97312.0,97311.0,0.43677036]
[1739706457391,0.011,97312.0,97311.0,0.42070722]
[1739706457792,0.011,97312.0,97311.0,0.43677036]
[1739706458292,0.011,97312.0,97311.0,0.46247139]
[1739706460488,0.011,97312.0,97311.0,0.43677036]
[1739706467502,0.011,97312.0,97311.0,0.46247139]
[1739706467901,0.011,97312.0,97311.0,0.42070722]
[1739706468088,0.011,97312.0,97311.0,0.46247139]
[1739706468498,0.011,97312.0,97311.0,0.43677036]
[1739706477909,0.011,97312.0,97311.0,0.43677038]
[1739706482711,0.011,97312.0,97311.0,0.42070722]
[1739706486610,0.011,97312.0,97311.0,0.43677009]
[1739706487711,0.011,97312.0,97311.0,0.43677008]
[1739706489809,0.011,97312.0,97311.0,0.4367701]
[1739706492202,0.011,97312.0,97311.0,0.43677009]
[1739706498811,0.011,97312.0,97311.0,0.46247068]
[1739706502716,0.00015418,97314.0,97311.0,0.43677009]
[1739706503018,0.00015418,97314.0,97312.0,0.08116287]
[1739706503209,0.00015418,97314.0,97313.0,0.01606287]
[1739706504022,0.00715418,97314.0,97313.0,0.01606287]
[1739706504321,0.01215418,97314.0,97313.0,0.01606287]
[1739706504918,0.01215418,97314.0,97313.0,0.01706287]
[1739706505821,0.01215418,97314.0,97313.0,0.04276163]
[1739706506216,0.00715418,97314.0,97313.0,0.40356163]
[1739706506417,0.01115418,97314.0,97313.0,0.40356163]
[1739706506815,0.01115418,97314.0,97313.0,0.37786287]
[1739706507623,0.01115418,97314.0,97313.0,0.59736355]
[1739706507920,0.03288,97328.0,97313.0,0.59736355]
[1739706508116,0.03288,97328.0,97326.0,0.3608]
[1739706508318,0.03288,97328.0,97327.0,0.07925957]
[1739706508518,0.03288,97328.0,97327.0,0.29876025]
[1739706508720,0.03288,97328.0,97327.0,0.29876017]
[1739706510121,0.03788,97328.0,97327.0,0.29876017]
[1739706510321,0.03788,97328.0,97327.0,0.30928007]
[1739706512819,0.03788,97328.0,97327.0,0.67008007]
[1739706514419,0.03788,97328.0,97327.0,0.6700799]
[1739706517027,0.03788,97328.0,97327.0,1.06122088]
[1739706520830,0.03788,97328.0,97327.0,0.97675854]
[1739706522926,0.03788,97328.0,97327.0,1.00245337]
[1739706523733,0.03788,97328.0,97327.0,0.69577474]
[1739706523925,0.03788,97328.0,97327.0,0.67007991]
[1739706524125,0.03588,97328.0,97327.0,0.76847991]
[1739706524922,8e-05,97332.0,97327.0,0.76847991]
[1739706525121,8e-05,97332.0,97328.0,0.01605933]
[1739706525322,8e-05,97332.0,97327.0,0.75242058]
[1739706525323,8e-05,97332.0,97329.0,0.01605933]
[1739706525522,8e-05,97332.0,97327.0,0.65458058]
[1739706525523,8e-05,97332.0,97330.0,0.01605926]
[1739706525724,8e-05,97332.0,97331.0,0.01605926]
[1739706526528,0.00408,97332.0,97331.0,0.01605926]
[1739706526926,0.00408,97332.0,97328.0,8e-05]
[1739706527235,0.00408,97332.0,97329.0,0.11441925]
[1739706527435,0.00408,97332.0,97330.0,0.01605925]
[1739706527635,0.00408,97332.0,97331.0,0.01605925]
[1739706528226,0.00108,97332.0,97331.0,0.01589942]
[1739706529136,0.00108,97332.0,97328.0,0.00016]
[1739706529436,0.00108,97332.0,97329.0,0.09836]
[1739706529930,0.00408,97332.0,97329.0,0.09836]
[1739706530329,8e-05,97332.0,97329.0,0.09836]
[1739706530536,0.00408,97332.0,97329.0,0.09836]
[1739706530936,8e-05,97332.0,97329.0,0.09836]
[1739706531229,0.00408,97332.0,97329.0,0.09836]
[1739706532135,0.00408,97332.0,97329.0,0.31786068]
[1739706532338,0.00408,97332.0,97329.0,0.21950068]
[1739706532640,0.00408,97332.0,97329.0,0.52617931]
[1739706532934,0.00308,97332.0,97329.0,0.52617931]
[1739706537034,0.00308,97332.0,97331.0,0.30667863]
[1739706540439,0.00308,97332.0,97331.0,0.32273787]
[1739706541630,0.00308,97332.0,97331.0,0.40504498]
[1739706544844,0.00308,97332.0,97331.0,0.40504461]
[1739706545044,0.00308,97332.0,97331.0,0.38898573]
[1739706553754,0.00308,97332.0,97331.0,0.33908573]
[1739706554447,0.01323295,97332.0,97331.0,0.33908573]
[1739706554648,0.01323295,97332.0,97328.0,0.00016]
[1739706554850,0.3608,97330.0,97328.0,0.00016]
[1739706555450,0.11159295,97332.0,97328.0,0.00016]
[1739706555653,0.00308,97332.0,97328.0,0.00016]
[1739706555845,0.10144,97332.0,97328.0,0.00016]
[1739706556348,0.003,97330.0,97328.0,0.00016]
[1739706556851,0.10144,97332.0,97328.0,0.00016]
[1739706557147,0.10144,97332.0,97329.0,0.01605997]
[1739706557350,0.00308,97332.0,97330.0,0.01605997]
[1739706557653,0.00308,97332.0,97331.0,0.04865997]
[1739706558543,8e-05,97332.0,97331.0,0.04865997]
[1739706559249,8e-05,97332.0,97331.0,0.04865974]
[1739706559250,0.00408,97332.0,97331.0,0.04865974]
[1739706559452,0.00408,97332.0,97331.0,0.04965974]
[1739706560356,0.00308,97332.0,97331.0,0.04965974]
[1739706561869,8e-05,97332.0,97331.0,0.04965974]
[1739706562159,0.00408,97332.0,97331.0,0.04865974]
[1739706562954,8e-05,97332.0,97331.0,0.04965974]
[1739706563153,0.00308,97332.0,97331.0,0.04965974]
[1739706563352,0.00308,97332.0,97331.0,0.04965952]
[1739706563747,0.00308,97332.0,97331.0,0.04865952]
[1739706564952,0.00408,97332.0,97331.0,0.04865952]
[1739706565651,0.00308,97332.0,97331.0,0.04865952]
[1739706565855,0.00308,97332.0,97331.0,0.0326]
[1739706566055,0.00308,97332.0,97331.0,0.04865943]
[1739706578370,0.00308,97332.0,97331.0,0.04865886]
[1739706584681,0.00308,97332.0,97331.0,0.42262065]
[1739706585986,0.00308,97332.0,97331.0,0.42262063]
[1739706598581,0.00308,97332.0,97331.0,0.40656179]
[1739706598783,0.00308,97332.0,97331.0,0.42262047]
[1739706600789,0.00308,97332.0,97331.0,0.42262049]
[1739706606294,0.00308,97332.0,97331.0,0.42262057]
[1739706607585,0.00308,97332.0,97331.0,0.40656179]
[1739706609587,0.00308,97332.0,97331.0,0.42262057]
[1739706614595,0.00308,97332.0,97331.0,0.42262046]
[1739706616497,0.00015418,97337.0,97331.0,0.42262046]
[1739706616793,0.00015418,97337.0,97336.0,0.3608]
[1739706616991,0.00015418,97337.0,97336.0,0.37685867]
[1739706617796,0.00415418,97337.0,97336.0,0.37685867]
[1739706618296,0.00015418,97337.0,97336.0,0.37685867]
[1739706618497,0.00415418,97337.0,97336.0,0.37685867]
[1739706622596,0.00415418,97337.0,97336.0,0.75082046]
[1739706626500,0.00415418,97337.0,97336.0,1.05829526]
[1739706627193,0.00415418,97337.0,97336.0,0.69749532]
[1739706629601,0.00415418,97337.0,97336.0,0.72318921]
[1739706630404,0.00415418,97337.0,97336.0,0.7392478]
[1739706630596,0.00415418,97337.0,97336.0,0.71355391]
[1739706630998,0.00415418,97337.0,97336.0,0.01605873]
[1739706631195,0.00415418,97337.0,97336.0,0.0160586]
[1739706632107,0.00115418,97337.0,97336.0,0.0160586]
[1739706635405,0.00115418,97337.0,97336.0,0.01605853]
[1739706640704,0.00115418,97337.0,97334.0,0.3074748]
[1739706641708,0.00015418,97337.0,97335.0,0.32353332]
[1739706641904,0.00115418,97337.0,97336.0,0.01605852]
[1739706642707,0.00115418,97337.0,97335.0,0.3074748]
[1739706643511,0.00015418,97337.0,97335.0,0.3074748]
[1739706643813,0.00115418,97337.0,97335.0,0.3074748]
[1739706644813,0.00115418,97337.0,97336.0,0.01605852]
[1739706645513,0.00115418,97337.0,97336.0,0.69046296]
[1739706646814,0.00115418,97337.0,97336.0,0.67440444]
[1739706647813,0.00115418,97337.0,97336.0,0.69046296]
[1739706648519,0.00115418,97337.0,97336.0,0.38298816]
[1739706648815,0.00115418,97337.0,97336.0,0.36692964]
[1739706653914,0.00115418,97337.0,97336.0,0.38298816]
[1739706654805,0.01033074,97351.0,97336.0,0.36692964]
[1739706656118,0.01033074,97351.0,97336.0,0.36792964]
[1739706656308,0.01133074,97351.0,97336.0,0.36892964]
[1739706656813,0.01133074,97351.0,97337.0,0.01605839]
[1739706657022,0.01133074,97351.0,97338.0,0.01605839]
[1739706657217,0.01133074,97351.0,97339.0,0.01605839]
[1739706657410,0.01133074,97351.0,97340.0,0.11315839]
[1739706657610,0.01133074,97351.0,97341.0,0.01605839]
[1739706657810,0.01133074,97351.0,97340.0,0.0971]
[1739706659312,0.01033074,97351.0,97340.0,0.0971]
[1739706659918,0.01033074,97351.0,97341.0,0.01605839]
[1739706660123,0.01033074,97351.0,97342.0,0.01605839]
[1739706660316,0.01029074,97351.0,97343.0,0.01605839]
[1739706660512,0.01029074,97351.0,97344.0,0.01605839]
[1739706660709,0.01029074,97351.0,97345.0,0.01605839]
[1739706660914,0.01029074,97351.0,97346.0,0.0313]
[1739706661114,0.01029074,97351.0,97347.0,0.0628]
[1739706661719,0.01029074,97351.0,97347.0,0.0328]
[1739706662313,0.01029074,97351.0,97342.0,0.01049584]
[1739706662521,0.01029074,97351.0,97341.0,0.0651]
[1739706662719,0.01025074,97351.0,97347.0,0.001]
[1739706662923,0.36234146,97352.0,97347.0,0.001]
[1739706663219,0.36234146,97352.0,97347.0,0.24714953]
[1739706663728,0.72314146,97352.0,97347.0,0.24714953]
[1739706664529,0.72314146,97352.0,97347.0,0.24814953]
[1739706666128,0.72314146,97352.0,97348.0,0.0323]
[1739706666624,0.72314146,97352.0,97349.0,0.0308]
[1739706667034,0.73338191,97352.0,97349.0,0.0308]
[1739706669023,0.73338191,97352.0,97349.0,0.0318]
[1739706670431,0.73338191,97352.0,97349.0,0.0328]
[1739706701362,0.73184045,97352.0,97349.0,0.0328]
[1739706701567,0.09828,97351.0,97349.0,0.0328]
[1739706702866,0.09828,97351.0,97349.0,0.0318]
[1739706703161,0.09828,97351.0,97349.0,0.0328]
[1739706712271,0.09828,97351.0,97350.0,0.18461812]
[1739706712471,0.01024045,97352.0,97350.0,0.18461812]
[1739706712675,0.36095409,97353.0,97350.0,0.18461812]
[1739706713672,0.37135725,97353.0,97350.0,0.18461812]
[1739706714771,0.37135725,97353.0,97350.0,0.18561812]
[1739706714970,0.37135725,97353.0,97350.0,0.18661812]
[1739706715768,0.37135725,97353.0,97350.0,0.18561812]
[1739706715972,0.37135725,97353.0,97350.0,0.18661812]
[1739706716971,0.37135725,97353.0,97351.0,0.18461812]
[1739706718478,0.37135725,97353.0,97351.0,0.18561812]
[1739706718866,0.37135725,97353.0,97351.0,0.18661812]
[1739706725381,0.37135725,97353.0,97352.0,0.18461812]
[1739706726580,0.37135725,97353.0,97352.0,0.18661812]
[1739706728382,0.37135725,97353.0,97352.0,0.002]
[1739706732187,0.37135725,97353.0,97352.0,0.18661812]
[1739706733289,0.01055725,97353.0,97352.0,0.18661812]
[1739706733490,0.37135725,97353.0,97352.0,0.18661812]
[1739706734884,0.01055725,97353.0,97352.0,0.18661812]
[1739706735088,0.37135725,97353.0,97352.0,0.18661812]
[1739706736196,0.01055725,97353.0,97352.0,0.002]
[1739706736499,0.37135725,97353.0,97352.0,0.002]
[1739706750007,0.36095409,97353.0,97352.0,0.002]
[1739706753312,0.36095409,97353.0,97352.0,0.18673689]
[1739706753508,0.37124088,97353.0,97352.0,0.18673689]
[1739706758205,0.37124088,97353.0,97352.0,0.002]
[1739706770418,0.37124088,97353.0,97352.0,0.18671652]
[1739706777342,0.37124088,97353.0,97352.0,0.002]
[1739706782645,0.01044088,97353.0,97352.0,0.002]
[1739706782834,0.73204088,97353.0,97352.0,0.002]
[1739706785538,0.78199897,97353.0,97352.0,0.002]
[1739706797952,0.73204088,97353.0,97352.0,0.002]
[1739706804864,0.78200244,97353.0,97352.0,0.002]
[1739706817767,0.06040244,97353.0,97352.0,0.002]
[1739706817969,0.78200244,97353.0,97352.0,0.002]
[1739706821070,0.96701694,97353.0,97352.0,0.002]
[1739706824775,0.87810782,97353.0,97352.0,0.002]
[1739706832369,0.78200244,97353.0,97352.0,0.002]
[1739706834181,0.06040244,97353.0,97352.0,0.002]
[1739706834379,0.78200244,97353.0,97352.0,0.002]
[1739706840588,0.87891075,97353.0,97352.0,0.002]
[1739706841590,0.15731075,97353.0,97352.0,0.002]
[1739706842088,0.87891075,97353.0,97352.0,0.002]
[1739706842276,0.15731075,97353.0,97352.0,0.002]
[1739706842681,0.87891075,97353.0,97352.0,0.002]
[1739706847593,0.78200244,97353.0,97352.0,0.002]
[1739706849989,1.00380244,97353.0,97352.0,0.002]
[1739706855788,1.18879719,97353.0,97352.0,0.002]
[1739706855986,0.96699719,97353.0,97352.0,0.002]
[1739706859595,0.78200244,97353.0,97352.0,0.002]
[1739706862497,0.87827567,97353.0,97352.0,0.002]
[1739706865397,0.78200244,97353.0,97352.0,0.002]
[1739706883504,0.73204088,97353.0,97352.0,0.002]
[1739706889712,0.37124088,97353.0,97352.0,0.002]
[1739706892216,0.01044088,97353.0,97352.0,0.002]
[1739706892402,0.37124088,97353.0,97352.0,0.002]
[1739706895203,0.01044088,97353.0,97352.0,0.002]
[1739706895404,0.37124088,97353.0,97352.0,0.002]
[1739706898915,0.01044088,97353.0,97352.0,0.002]
[1739706899114,0.37124088,97353.0,97352.0,0.002]
[1739706899307,0.01044088,97353.0,97352.0,0.002]
[1739706899520,0.37124088,97353.0,97352.0,0.002]
[1739706915532,0.01044088,97353.0,97352.0,0.002]
[1739706915832,0.37124088,97353.0,97352.0,0.002]
[1739706929839,0.01044088,97353.0,97352.0,0.002]
[1739706930034,0.37124088,97353.0,97352.0,0.002]
[1739706937543,0.37124088,97353.0,97352.0,0.01805944]
[1739706938541,0.37124088,97353.0,97352.0,0.002]
[1739706938743,0.37124088,97353.0,97352.0,0.0180596]
[1739706938943,0.01044088,97353.0,97352.0,0.0180596]
[1739706939143,0.37124088,97353.0,97352.0,0.0180596]
[1739706939344,0.37124088,97353.0,97352.0,0.002]